bitfinex-derivatives/quotes_BTCF0:USTF0_20250703
["timestamp","ask_amount","ask_price","bid_price","bid_amount"]
[1751577592199,1.65886543,109810.0,109800.0,0.8186889]
[1751577592405,1.65886543,109810.0,109800.0,0.87333209]
[1751577594010,1.65886543,109810.0,109800.0,0.8186889]
[1751577594210,1.65886543,109810.0,109800.0,0.87333209]
[1751577595313,1.68089734,109810.0,109800.0,0.87333209]
[1751577596815,1.99445037,109810.0,109800.0,0.87333209]
[1751577598606,1.68089734,109810.0,109800.0,0.87333209]
[1751577600423,1.99445037,109810.0,109800.0,0.0958]
[1751577600622,2.05965037,109810.0,109800.0,0.0958]
[1751577601621,2.05965037,109810.0,109800.0,0.35253219]
[1751577602108,2.05967138,109810.0,109800.0,0.35253219]
[1751577603822,1.74611835,109810.0,109800.0,0.35253219]
[1751577606223,1.74611835,109810.0,109800.0,0.297889]
[1751577607222,1.74611835,109810.0,109800.0,0.35253219]
[1751577607423,1.74611835,109810.0,109800.0,0.297889]
[1751577607623,1.74611835,109810.0,109800.0,0.35253219]
[1751577608223,1.74611835,109810.0,109800.0,0.0958]
[1751577608422,1.74611835,109810.0,109800.0,0.277889]
[1751577608623,1.74611835,109810.0,109800.0,0.0958]
[1751577609025,1.74611835,109810.0,109800.0,0.277889]
[1751577609225,2.05967138,109810.0,109800.0,0.277889]
[1751577613032,2.05967138,109810.0,109800.0,0.0958]
[1751577613335,2.05967138,109810.0,109800.0,0.15044319]
[1751577614928,2.05967138,109810.0,109800.0,0.33253209]
[1751577615828,2.05967138,109810.0,109800.0,0.2778889]
[1751577616330,2.05967138,109810.0,109800.0,0.33253209]
[1751577618232,2.05967138,109810.0,109800.0,0.36253209]
[1751577618427,2.05967138,109810.0,109800.0,0.3078889]
[1751577622138,2.05967138,109810.0,109800.0,0.1258]
[1751577622537,2.05967138,109810.0,109800.0,0.15044319]
[1751577623442,0.1820888,109800.0,109790.0,0.43411509]
[1751577623640,1.22464778,109800.0,109790.0,0.44411509]
[1751577623841,1.25574778,109800.0,109790.0,0.44411509]
[1751577624243,1.25574778,109800.0,109790.0,0.38947836]
[1751577626546,1.25574778,109800.0,109790.0,0.37947836]
[1751577626749,0.1821054,109790.0,109780.0,0.4546]
[1751577626944,0.1821054,109790.0,109770.0,0.615463]
[1751577626945,0.1821219,109780.0,109770.0,0.615463]
[1751577627153,0.80922796,109780.0,109770.0,0.9281378]
[1751577627447,0.1821219,109780.0,109770.0,0.9281378]
[1751577627746,0.80922796,109780.0,109770.0,0.9281378]
[1751577628144,0.80822796,109780.0,109770.0,0.9281378]
[1751577628345,0.80822796,109780.0,109770.0,0.746]
[1751577629147,0.87946768,109780.0,109770.0,0.9281385]
[1751577630046,0.87946768,109780.0,109770.0,0.9311385]
[1751577630247,1.24946768,109780.0,109770.0,0.9311385]
[1751577631748,1.24946768,109780.0,109770.0,0.749]
[1751577633550,1.31546768,109780.0,109770.0,0.749]
[1751577634053,1.33789037,109780.0,109770.0,0.751]
[1751577634353,1.31546768,109780.0,109770.0,0.751]
[1751577635557,1.32454407,109780.0,109770.0,0.751]
[1751577636453,1.32454407,109780.0,109770.0,0.461]
[1751577636849,1.32454407,109780.0,109770.0,0.6431385]
[1751577637153,1.6052971,109780.0,109770.0,0.005]
[1751577637342,1.65810743,109780.0,109770.0,0.005]
[1751577637549,1.3757544,109780.0,109770.0,0.005]
[1751577638453,1.3757544,109780.0,109770.0,0.004]
[1751577638662,1.3757544,109780.0,109770.0,0.002]
[1751577639052,0.1821385,109770.0,109760.0,0.3608]
[1751577639260,0.1821385,109770.0,109760.0,0.3708]
[1751577639261,2.04336456,109770.0,109760.0,0.3708]
[1751577640157,2.04336456,109770.0,109760.0,0.3718]
[1751577640655,2.04336456,109770.0,109760.0,0.3738]
[1751577641554,2.04336456,109770.0,109760.0,0.555955]
[1751577641850,2.04336456,109770.0,109760.0,0.553955]
[1751577642055,2.04336456,109770.0,109760.0,0.554955]
[1751577646561,2.04336456,109770.0,109760.0,0.649655]
[1751577647359,2.04336456,109770.0,109760.0,0.639655]
[1751577648463,2.01126456,109770.0,109760.0,0.639655]
[1751577649065,1.3841585,109770.0,109760.0,0.639655]
[1751577649364,2.01126456,109770.0,109760.0,0.639655]
[1751577650364,2.01126456,109770.0,109760.0,0.659655]
[1751577652865,2.01126456,109770.0,109760.0,0.889655]
[1751577655967,1.18154456,109770.0,109760.0,0.889655]
[1751577656170,2.01122456,109770.0,109760.0,0.889655]
[1751577656370,2.03365667,109770.0,109760.0,0.889655]
[1751577660277,2.00201667,109770.0,109760.0,0.889655]
[1751577660471,1.97131667,109770.0,109760.0,0.889655]
[1751577662773,0.83167667,109770.0,109760.0,0.889655]
[1751577662978,2.02127667,109770.0,109760.0,0.889655]
[1751577666786,2.02123667,109770.0,109760.0,0.889655]
[1751577667083,1.19167667,109770.0,109760.0,0.889655]
[1751577667285,2.02123667,109770.0,109760.0,0.889655]
[1751577667481,1.66123667,109770.0,109760.0,0.889655]
[1751577667681,2.04123667,109770.0,109760.0,0.889655]
[1751577669788,1.21167667,109770.0,109760.0,0.889655]
[1751577669988,2.04119667,109770.0,109760.0,0.889655]
[1751577670187,2.03119667,109770.0,109760.0,0.889655]
[1751577670988,2.06139667,109770.0,109760.0,0.889655]
[1751577671282,2.06139667,109770.0,109760.0,0.194155]
[1751577671283,2.42219667,109770.0,109760.0,0.194155]
[1751577671484,2.48529667,109770.0,109760.0,0.194155]
[1751577671886,2.48529667,109770.0,109760.0,0.012]
[1751577672083,2.48529667,109770.0,109760.0,0.194155]
[1751577672389,2.48529667,109770.0,109760.0,0.012]
[1751577672583,2.48529667,109770.0,109760.0,0.194155]
[1751577672785,2.48529667,109770.0,109760.0,0.002]
[1751577672985,0.182155,109760.0,109750.0,0.58850184]
[1751577673188,1.24879317,109760.0,109750.0,0.91404464]
[1751577673383,1.24879317,109760.0,109750.0,0.86850184]
[1751577673583,1.5623462,109760.0,109750.0,0.01000004]
[1751577675483,1.5623462,109760.0,109750.0,0.01200004]
[1751577676389,1.56234438,109760.0,109750.0,0.01200004]
[1751577676586,1.56234438,109760.0,109750.0,0.01400004]
[1751577677589,1.56234028,109760.0,109750.0,0.01400004]
[1751577679583,0.20458119,109760.0,109750.0,0.86052467]
[1751577679785,0.51813422,109760.0,109750.0,1.22442467]
[1751577679986,0.182155,109760.0,109750.0,1.22442467]
[1751577680189,0.1821329,109780.0,109770.0,0.1821384]
[1751577680386,0.1821329,109780.0,109770.0,1.48729143]
[1751577680387,0.20454236,109780.0,109770.0,1.48729143]
[1751577680586,0.1821218,109780.0,109770.0,1.58119143]
[1751577680886,0.63225663,109790.0,109780.0,0.1821218]
[1751577681198,0.63225663,109790.0,109780.0,1.20977483]
[1751577681498,0.70567848,109790.0,109780.0,1.20977483]
[1751577681893,0.70567848,109790.0,109780.0,0.8962218]
[1751577681894,1.53522321,109790.0,109780.0,0.8962218]
[1751577682194,1.53722321,109790.0,109780.0,0.8962218]
[1751577682390,1.54022321,109790.0,109780.0,0.8962218]
[1751577683102,0.1871186,109790.0,109780.0,0.90533424]
[1751577683289,0.1871053,109790.0,109780.0,1.218992]
[1751577684302,0.1871053,109790.0,109780.0,0.90533424]
[1751577686495,0.50076306,109790.0,109780.0,0.8962218]
[1751577706309,0.52313399,109790.0,109780.0,0.8962218]
[1751577709810,0.52317591,109790.0,109780.0,0.8962218]
[1751577713315,0.50080498,109790.0,109780.0,0.8962218]
[1751577713514,0.52325489,109790.0,109780.0,0.8962218]
[1751577716107,0.52325489,109790.0,109780.0,0.968747]
[1751577718320,0.52325489,109790.0,109780.0,0.8962218]
[1751577722321,0.52325489,109790.0,109780.0,0.968747]
[1751577726721,0.52325489,109790.0,109780.0,1.20992148]
[1751577727319,0.52325489,109790.0,109780.0,0.8962218]
[1751577728221,0.52325489,109790.0,109780.0,0.968747]
[1751577729826,0.52325489,109790.0,109780.0,1.28244668]
[1751577731426,0.52325489,109790.0,109780.0,1.20992148]
[1751577739837,0.52325489,109790.0,109780.0,0.8962218]
[1751577740929,0.52325489,109790.0,109780.0,1.20992148]
[1751577746137,0.54129498,109810.0,109800.0,0.1820884]
[1751577746338,0.87129498,109810.0,109800.0,1.15658808]
[1751577746533,0.1820762,109810.0,109800.0,1.27654307]
[1751577746739,0.3354747,109830.0,109820.0,0.1820552]
[1751577746939,0.87468678,109830.0,109820.0,0.7528552]
[1751577747136,0.87468678,109830.0,109820.0,0.8181552]
[1751577747538,0.78366158,109830.0,109820.0,0.8181552]
[1751577747738,0.78342488,109830.0,109820.0,0.8181552]
[1751577747937,0.72102488,109830.0,109820.0,0.8181552]
[1751577748240,0.73102488,109830.0,109820.0,0.8181552]
[1751577748440,0.80391542,109830.0,109820.0,0.8181552]
[1751577748642,0.80991542,109830.0,109820.0,0.8181552]
[1751577749843,0.62991542,109830.0,109820.0,0.8181552]
[1751577750144,0.95991542,109830.0,109820.0,0.8181552]
[1751577750546,0.62991542,109830.0,109820.0,0.8181552]
[1751577750845,1.00991542,109830.0,109820.0,0.8181552]
[1751577751445,0.62991542,109830.0,109820.0,0.8181552]
[1751577751646,0.94991542,109830.0,109820.0,0.8181552]
[1751577752045,0.62991542,109830.0,109820.0,0.8181552]
[1751577752246,0.97991542,109830.0,109820.0,0.8181552]
[1751577752448,0.62991542,109830.0,109820.0,0.8181552]
[1751577754050,0.99991542,109830.0,109820.0,0.8181552]
[1751577754254,0.62991542,109830.0,109820.0,0.8181552]
[1751577754651,0.93991542,109830.0,109820.0,0.8181552]
[1751577755152,0.62991542,109830.0,109820.0,0.8181552]
[1751577755353,0.97991542,109830.0,109820.0,0.8181552]
[1751577755654,0.62991542,109830.0,109820.0,0.8181552]
[1751577755843,0.98991542,109830.0,109820.0,0.8181552]
[1751577756550,0.62991542,109830.0,109820.0,0.8181552]
[1751577758153,0.95991542,109830.0,109820.0,0.8181552]
[1751577758354,0.62991542,109830.0,109820.0,0.8181552]
[1751577759454,0.55702488,109830.0,109820.0,0.8181552]
[1751577759757,0.2435619,109830.0,109820.0,0.8181552]
[1751577760159,0.2435619,109830.0,109820.0,1.1381552]
[1751577760955,0.55702488,109830.0,109820.0,1.1381552]
[1751577761657,0.55702488,109830.0,109820.0,1.4989552]
[1751577762655,0.55702488,109830.0,109820.0,2.3272352]
[1751577769855,0.55700555,109830.0,109820.0,2.64067885]
[1751577774163,0.57925989,109830.0,109820.0,2.64067885]
[1751577776377,0.57925989,109830.0,109820.0,2.6953242]
[1751577777274,0.52774749,109830.0,109820.0,2.3753242]
[1751577777469,0.50949315,109830.0,109820.0,2.3753242]
[1751577777664,0.49949315,109830.0,109820.0,2.3753242]
[1751577777868,0.50449315,109830.0,109820.0,2.3753242]
[1751577778275,0.52677945,109830.0,109820.0,2.3753242]
[1751577780476,0.34472995,109830.0,109820.0,2.3753242]
[1751577780678,0.52676865,109830.0,109820.0,2.3753242]
[1751577782875,0.34472995,109830.0,109820.0,2.3753242]
[1751577783075,0.34472995,109830.0,109820.0,2.7153242]
[1751577784979,0.52676875,109830.0,109820.0,2.7153242]
[1751577785279,0.52676875,109830.0,109820.0,1.8870442]
[1751577785472,0.52676875,109830.0,109820.0,2.7149642]
[1751577785674,0.34472995,109830.0,109820.0,3.02840785]
[1751577786683,0.32244365,109830.0,109820.0,3.02840785]
[1751577786980,0.009,109830.0,109820.0,3.02840785]
[1751577787169,0.57172526,109840.0,109830.0,0.1820387]
[1751577787371,0.59401013,109840.0,109830.0,1.31576928]
[1751577787677,0.41198573,109840.0,109830.0,1.31576928]
[1751577788387,0.60100793,109840.0,109830.0,1.31576928]
[1751577788574,0.42298573,109840.0,109830.0,1.31576928]
[1751577789381,0.60500793,109840.0,109830.0,1.31576928]
[1751577790081,0.53075072,109840.0,109830.0,1.26118235]
[1751577792080,0.34872852,109840.0,109830.0,1.26118235]
[1751577794183,0.53075062,109840.0,109830.0,1.26118235]
[1751577794384,0.34872852,109840.0,109830.0,1.26118235]
[1751577795476,0.34872852,109840.0,109830.0,1.57118235]
[1751577796884,0.34872852,109840.0,109830.0,1.93198235]
[1751577797885,0.2434089,109850.0,109840.0,0.1820222]
[1751577798088,0.54863949,109850.0,109840.0,2.08267278]
[1751577798387,0.54863949,109850.0,109840.0,2.02808585]
[1751577799091,0.55263949,109850.0,109840.0,2.02808585]
[1751577799688,0.55663949,109850.0,109840.0,2.02808585]
[1751577801587,0.03028694,109850.0,109840.0,2.3415295]
[1751577801793,0.63191245,109870.0,109840.0,2.63959603]
[1751577801987,1.10621245,109870.0,109860.0,0.49543265]
[1751577802188,1.10621245,109870.0,109860.0,0.78543265]
[1751577802788,1.10621245,109870.0,109860.0,1.14623265]
[1751577803187,1.01522005,109870.0,109860.0,1.14623265]
[1751577803388,0.40774365,109870.0,109860.0,1.97387265]
[1751577803587,0.37624365,109870.0,109860.0,2.32660678]
[1751577803883,0.61999505,109880.0,109870.0,0.1819725]
[1751577804089,1.2584387,109880.0,109870.0,0.8027725]
[1751577805392,1.33303501,109880.0,109870.0,0.8027725]
[1751577805592,1.33303501,109880.0,109870.0,0.8037725]
[1751577810997,0.75959136,109880.0,109870.0,0.8037725]
[1751577811192,1.07303501,109880.0,109870.0,0.8037725]
[1751577812398,1.07303501,109880.0,109870.0,1.11721615]
[1751577813798,1.0951808,109880.0,109870.0,1.11721615]
[1751577817104,0.78173715,109880.0,109870.0,1.11721615]
[1751577817403,0.75013715,109880.0,109870.0,1.21251615]
[1751577817598,0.68513715,109880.0,109870.0,1.21251615]
[1751577817994,0.66299136,109880.0,109870.0,1.21251615]
[1751577818499,0.68514241,109880.0,109870.0,1.21251615]
[1751577818699,0.66299136,109880.0,109870.0,1.21251615]
[1751577818895,0.68514177,109880.0,109870.0,1.21251615]
[1751577819293,0.69514177,109880.0,109870.0,1.21251615]
[1751577819500,0.67299136,109880.0,109870.0,1.21251615]
[1751577819691,0.66299136,109880.0,109870.0,1.21251615]
[1751577820418,0.68299136,109880.0,109870.0,1.21251615]
[1751577820710,0.66299136,109880.0,109870.0,1.21251615]
[1751577821909,0.68514538,109880.0,109870.0,1.21251615]
[1751577822710,0.71514538,109880.0,109870.0,1.21251615]
[1751577822911,0.66299136,109880.0,109870.0,1.21251615]
[1751577823211,0.1839697,109880.0,109870.0,1.21251615]
[1751577823616,0.032,109880.0,109870.0,1.21251615]
[1751577823911,0.002,109880.0,109870.0,1.21251615]
[1751577824311,0.1819336,109900.0,109890.0,0.1819395]
[1751577824512,0.83754186,109900.0,109890.0,1.12618315]
[1751577824710,0.83754186,109900.0,109890.0,1.21808315]
[1751577825606,0.83754339,109900.0,109890.0,1.21808315]
[1751577825911,0.83754339,109900.0,109890.0,1.22727618]
[1751577826305,0.83754339,109900.0,109890.0,1.21808315]
[1751577826710,0.83754339,109900.0,109890.0,1.57888315]
[1751577827601,0.52409974,109900.0,109890.0,1.57888315]
[1751577827805,0.58829185,109920.0,109910.0,0.1819064]
[1751577828005,0.91499445,109920.0,109910.0,1.96327005]
[1751577828210,0.59499445,109920.0,109910.0,2.05777005]
[1751577828415,0.72952125,109920.0,109910.0,2.05777005]
[1751577829911,0.4160776,109920.0,109910.0,1.7443264]
[1751577831215,0.3938999,109920.0,109910.0,1.7443264]
[1751577835712,0.3938999,109920.0,109910.0,2.42724488]
[1751577835713,0.002,109920.0,109910.0,2.42724488]
[1751577835912,0.002,109920.0,109910.0,2.78804488]
[1751577837014,0.2728271,109930.0,109920.0,0.1818899]
[1751577837218,0.4473562,109930.0,109920.0,1.22090838]
[1751577838615,0.2273562,109930.0,109920.0,1.57090838]
[1751577839414,0.1818865,109930.0,109920.0,1.57090838]
[1751577841809,0.1818865,109930.0,109920.0,1.57290838]
[1751577842010,0.1818865,109930.0,109920.0,1.93370838]
[1751577842918,0.1818865,109930.0,109920.0,1.21210838]
[1751577843215,0.1818865,109930.0,109920.0,1.93370838]
[1751577845314,0.1818865,109930.0,109920.0,1.6207899]
[1751577845518,0.49480498,109930.0,109920.0,1.46944]
[1751577845720,0.61240071,109930.0,109920.0,1.46944]
[1751577846415,0.90312346,109930.0,109920.0,0.6428]
[1751577846716,0.1819233,109900.0,109890.0,0.6336951]
[1751577846924,0.49484178,109900.0,109890.0,1.4702951]
[1751577847123,0.58824178,109900.0,109890.0,0.8882106]
[1751577847420,0.1819398,109890.0,109880.0,1.460325]
[1751577847734,0.55555828,109890.0,109880.0,1.740325]
[1751577847915,0.55555828,109890.0,109880.0,1.6948373]
[1751577848217,0.55555828,109890.0,109880.0,0.8227497]
[1751577848419,0.55555828,109890.0,109880.0,0.4408]
[1751577848720,0.89068299,109890.0,109880.0,0.08]
[1751577849021,0.96239956,109890.0,109880.0,0.08]
[1751577849222,0.64948108,109890.0,109880.0,0.08]
[1751577849417,0.89068299,109890.0,109880.0,0.08]
[1751577849617,0.89068299,109890.0,109880.0,0.086]
[1751577850220,0.89068299,109890.0,109880.0,0.081]
[1751577850421,0.89068299,109890.0,109880.0,0.082]
[1751577850922,1.43349099,109890.0,109880.0,0.082]
[1751577853516,1.43349099,109890.0,109880.0,0.081]
[1751577854820,1.50517237,109890.0,109880.0,0.081]
[1751577855620,1.32316437,109890.0,109880.0,0.081]
[1751577861921,1.14437237,109890.0,109880.0,0.001]
[1751577862127,1.50517237,109890.0,109880.0,0.001]
[1751577864421,0.1819563,109880.0,109870.0,0.00182025]
[1751577864628,1.77867478,109880.0,109870.0,0.00182025]
[1751577865319,1.80076093,109880.0,109870.0,0.00182025]
[1751577865925,1.80076093,109880.0,109870.0,0.00482025]
[1751577866521,2.03132093,109880.0,109870.0,0.00482025]
[1751577868128,2.03132093,109880.0,109870.0,0.00582025]
[1751577875738,2.38132093,109880.0,109870.0,0.00582025]
[1751577876436,2.43565361,109880.0,109870.0,0.00582025]
[1751577880136,2.43565361,109880.0,109870.0,0.03682025]
[1751577885139,2.12273513,109880.0,109870.0,0.03682025]
[1751577885342,2.43565361,109880.0,109870.0,0.03682025]
[1751577893746,2.74931533,109880.0,109870.0,0.03682025]
[1751577898349,2.12273513,109880.0,109870.0,0.03682025]
[1751577898650,2.74931533,109880.0,109870.0,0.03682025]
[1751577898854,2.74931533,109880.0,109870.0,0.06872025]
[1751577899148,2.74931533,109880.0,109870.0,0.09962025]
[1751577900550,2.12273513,109880.0,109870.0,0.09962025]
[1751577900855,2.12273513,109880.0,109870.0,0.06872025]
[1751577901050,2.74931533,109880.0,109870.0,0.06872025]
[1751577901242,2.68401533,109880.0,109870.0,0.06872025]
[1751577901443,2.65311533,109880.0,109870.0,0.10172025]
[1751577901850,1.59575533,109880.0,109870.0,0.10172025]
[1751577902048,2.42503533,109880.0,109870.0,0.10172025]
[1751577902353,2.73832543,109880.0,109870.0,0.10172025]
[1751577902948,1.90904543,109880.0,109870.0,0.10172025]
[1751577903153,2.42499533,109880.0,109870.0,0.10172025]
[1751577903854,2.73828543,109880.0,109870.0,0.10172025]
[1751577904056,2.73849797,109880.0,109870.0,0.10172025]
[1751577904554,1.90925797,109880.0,109870.0,0.10172025]
[1751577904754,2.42520787,109880.0,109870.0,0.10172025]
[1751577907458,2.73849797,109880.0,109870.0,0.10172025]
[1751577909454,2.37769797,109880.0,109870.0,0.10172025]
[1751577909758,2.73849797,109880.0,109870.0,0.10172025]
[1751577916264,2.68416529,109880.0,109870.0,0.10172025]
[1751577918562,2.71486529,109880.0,109870.0,0.10172025]
[1751577918761,2.78730886,109880.0,109870.0,0.10172025]
[1751577918962,2.81800886,109880.0,109870.0,0.10172025]
[1751577919766,2.74556529,109880.0,109870.0,0.10172025]
[1751577921063,2.99633304,109880.0,109870.0,0.10172025]
[1751577922568,2.63553304,109880.0,109870.0,0.10172025]
[1751577922867,2.99633304,109880.0,109870.0,0.10172025]
[1751577924963,2.97403435,109880.0,109870.0,0.10172025]
[1751577925169,2.99548271,109880.0,109870.0,0.10172025]
[1751577941183,2.63468271,109880.0,109870.0,0.10172025]
[1751577941480,2.99548271,109880.0,109870.0,0.10172025]
[1751577943884,2.64548271,109880.0,109870.0,0.10172025]
[1751577956692,3.00548271,109880.0,109870.0,0.10172025]
[1751577964695,2.98403435,109880.0,109870.0,0.10172025]
[1751577964883,3.00571697,109880.0,109870.0,0.10172025]
[1751577966391,2.95118722,109880.0,109870.0,0.10172025]
[1751577976306,3.00570459,109880.0,109870.0,0.10172025]
[1751577992721,3.23626459,109880.0,109870.0,0.10172025]
[1751577992922,3.2364059,109880.0,109870.0,0.10172025]
[1751577997324,2.8756059,109880.0,109870.0,0.10172025]
[1751577997525,3.21458197,109880.0,109870.0,0.10172025]
[1751577997826,3.23640555,109880.0,109870.0,0.10172025]
[1751578006329,3.18188882,109880.0,109870.0,0.10172025]
[1751578013839,2.82108882,109880.0,109870.0,0.10172025]
[1751578014041,3.18188882,109880.0,109870.0,0.10172025]
[1751578016345,3.23640552,109880.0,109870.0,0.10172025]
[1751578021449,2.87560552,109880.0,109870.0,0.10172025]
[1751578021647,3.23640552,109880.0,109870.0,0.10172025]
[1751578024547,2.87560552,109880.0,109870.0,0.10172025]
[1751578024852,3.23640552,109880.0,109870.0,0.10172025]
[1751578029259,3.2145813,109880.0,109870.0,0.10172025]
[1751578029457,3.23376491,109880.0,109870.0,0.10172025]
[1751578030357,3.21193477,109880.0,109870.0,0.10172025]
[1751578030557,3.2337649,109880.0,109870.0,0.10172025]
[1751578047866,2.8729649,109880.0,109870.0,0.10172025]
[1751578048067,3.2337649,109880.0,109870.0,0.10172025]
[1751578052462,2.8729649,109880.0,109870.0,0.10172025]
[1751578052664,3.2335649,109880.0,109870.0,0.10172025]
[1751578053767,0.1819894,109860.0,109850.0,0.05462638]
[1751578054063,0.1820225,109840.0,109830.0,0.00182091]
[1751578054263,0.1820391,109830.0,109820.0,0.05462638]
[1751578054461,0.1820391,109830.0,109810.0,0.3608]
[1751578054462,0.1820557,109820.0,109810.0,0.4571]
[1751578054665,2.00690603,109820.0,109810.0,0.4571]
[1751578054865,1.38032583,109820.0,109810.0,0.4571]
[1751578055067,1.38032583,109820.0,109810.0,1.3224623]
[1751578055068,0.02183013,109820.0,109810.0,1.3224623]
[1751578055371,0.41529927,109840.0,109830.0,0.1860391]
[1751578055372,0.631846,109840.0,109830.0,0.1860391]
[1751578055571,1.2951361,109840.0,109830.0,0.1860391]
[1751578055767,1.2921361,109840.0,109830.0,0.0641]
[1751578055959,1.2921361,109840.0,109830.0,0.6069391]
[1751578056169,1.2921361,109840.0,109830.0,0.9202292]
[1751578056370,1.2921361,109840.0,109830.0,0.6199391]
[1751578056564,1.2921361,109840.0,109830.0,0.6209391]
[1751578057371,1.4883741,109840.0,109830.0,0.6209391]
[1751578057773,1.17520989,109840.0,109830.0,0.6209391]
[1751578058072,1.17520989,109840.0,109830.0,0.4389]
[1751578058571,1.17520989,109840.0,109830.0,0.4699]
[1751578060073,1.17520989,109840.0,109830.0,0.6519391]
[1751578060674,1.17520989,109840.0,109830.0,0.4699]
[1751578060871,1.17520989,109840.0,109830.0,0.6519391]
[1751578061972,1.17520989,109840.0,109830.0,0.4599]
[1751578062775,1.17520989,109840.0,109830.0,0.6419391]
[1751578062976,1.17520989,109840.0,109830.0,0.4599]
[1751578064380,1.17520989,109840.0,109830.0,0.6419391]
[1751578065180,1.17520989,109840.0,109830.0,0.4599]
[1751578065478,1.17520989,109840.0,109830.0,0.6419391]
[1751578066181,1.17520989,109840.0,109830.0,0.6519391]
[1751578068381,1.19681922,109840.0,109830.0,0.6519391]
[1751578069386,1.19681922,109840.0,109830.0,0.4699]
[1751578069688,1.19681922,109840.0,109830.0,0.6519391]
[1751578071583,1.19681922,109840.0,109830.0,0.4699]
[1751578072879,1.19681922,109840.0,109830.0,0.6519391]
[1751578074686,1.19681922,109840.0,109830.0,0.6419391]
[1751578077883,1.19681922,109840.0,109830.0,0.6519391]
[1751578078087,0.1820147,109850.0,109840.0,0.2730133]
[1751578078292,0.2275175,109850.0,109840.0,1.32673469]
[1751578078484,0.2275175,109850.0,109840.0,1.50880668]
[1751578078981,0.1820147,109850.0,109840.0,1.50880668]
[1751578079386,0.1820147,109850.0,109840.0,1.56343306]
[1751578079387,0.1830147,109850.0,109840.0,1.56343306]
[1751578080487,0.1830147,109850.0,109840.0,1.50880668]
[1751578080689,0.1830147,109850.0,109840.0,1.32673469]
[1751578081282,0.1830147,109850.0,109840.0,1.38136107]
[1751578081486,0.3792527,109850.0,109840.0,1.38136107]
[1751578085787,0.3792527,109850.0,109840.0,1.32973469]
[1751578087191,0.3782527,109850.0,109840.0,1.32973469]
[1751578087391,0.3782527,109850.0,109840.0,1.33073469]
[1751578089795,0.69154446,109850.0,109840.0,1.64390222]
[1751578090693,0.69154446,109850.0,109840.0,1.6985286]
[1751578091494,0.69154446,109850.0,109840.0,1.64390222]
[1751578096296,0.69154446,109850.0,109840.0,1.6985286]
[1751578101997,0.69154446,109850.0,109840.0,2.0593286]
[1751578108302,0.69154446,109850.0,109840.0,2.00470222]
[1751578110501,0.69154446,109850.0,109840.0,2.0775374]
[1751578112308,0.69154446,109850.0,109840.0,2.0593237]
[1751578113306,0.69154446,109850.0,109840.0,2.00470222]
[1751578116411,0.69154446,109850.0,109840.0,2.83074222]
[1751578120015,0.69154446,109850.0,109840.0,2.88536792]
[1751578122318,0.69154446,109850.0,109840.0,2.83074222]
[1751578123418,0.69154446,109850.0,109840.0,2.88537017]
[1751578123814,0.69153576,109850.0,109840.0,2.88537017]
[1751578129033,0.69153576,109850.0,109840.0,2.05933017]
[1751578129226,0.1820226,109840.0,109830.0,0.05463801]
[1751578129526,0.1820391,109830.0,109820.0,0.633872]
[1751578129732,0.87953086,109830.0,109820.0,0.633872]
[1751578129923,0.90105005,109830.0,109820.0,0.633872]
[1751578130225,1.09728805,109830.0,109820.0,0.633872]
[1751578130425,1.09228805,109830.0,109820.0,0.633872]
[1751578130626,1.09028805,109830.0,109820.0,0.633872]
[1751578131328,1.06876886,109830.0,109820.0,0.637872]
[1751578132030,1.06876886,109830.0,109820.0,0.640872]
[1751578132231,1.14056197,109830.0,109820.0,0.640872]
[1751578132530,1.14056197,109830.0,109820.0,0.770872]
[1751578133634,1.45385373,109830.0,109820.0,0.7253585]
[1751578133833,1.45385373,109830.0,109820.0,0.5953585]
[1751578134229,1.45385373,109830.0,109820.0,0.6053585]
[1751578134430,1.14056197,109830.0,109820.0,0.6053585]
[1751578134629,1.14056197,109830.0,109820.0,0.559846]
[1751578134932,1.16287459,109830.0,109820.0,0.559846]
[1751578135944,1.16287459,109830.0,109820.0,0.547846]
[1751578137641,1.16287459,109830.0,109820.0,0.1990557]
[1751578139544,1.14056197,109830.0,109820.0,0.1990557]
[1751578140232,1.14056197,109830.0,109820.0,0.87314746]
[1751578140434,1.10806197,109830.0,109820.0,0.87314746]
[1751578140638,0.78806197,109830.0,109820.0,0.93474746]
[1751578140839,1.09806197,109830.0,109820.0,0.93474746]
[1751578142044,0.78806197,109830.0,109820.0,0.93474746]
[1751578142443,0.47477021,109830.0,109820.0,0.93474746]
[1751578142644,0.78806197,109830.0,109820.0,0.93474746]
[1751578142845,0.78806197,109830.0,109820.0,0.6214557]
[1751578143047,0.78806197,109830.0,109820.0,0.93474746]
[1751578143340,0.78806197,109830.0,109820.0,1.23474746]
[1751578143845,0.78821355,109830.0,109820.0,0.7414557]
[1751578150954,1.10821355,109830.0,109820.0,0.7414557]
[1751578151754,0.78821355,109830.0,109820.0,0.6114557]
[1751578152054,1.09821355,109830.0,109820.0,0.6114557]
[1751578153055,1.12049301,109830.0,109820.0,0.6114557]
[1751578154056,0.81049301,109830.0,109820.0,0.6114557]
[1751578154256,1.18049301,109830.0,109820.0,0.6114557]
[1751578154556,1.13049301,109830.0,109820.0,0.6114557]
[1751578155158,0.81049301,109830.0,109820.0,0.6114557]
[1751578155657,1.15049301,109830.0,109820.0,0.6064557]
[1751578155956,0.81049301,109830.0,109820.0,0.6064557]
[1751578156151,1.14049301,109830.0,109820.0,0.6064557]
[1751578156558,1.17049301,109830.0,109820.0,0.6064557]
[1751578157058,1.17049301,109830.0,109820.0,0.6372557]
[1751578157860,0.81049301,109830.0,109820.0,0.6372557]
[1751578158055,1.18049301,109830.0,109820.0,0.6372557]
[1751578158255,1.18049301,109830.0,109820.0,0.69170908]
[1751578158760,0.81049301,109830.0,109820.0,0.69170908]
[1751578158959,1.18049301,109830.0,109820.0,0.69170908]
[1751578159163,0.81049301,109830.0,109820.0,0.69170908]
[1751578159364,1.16049301,109830.0,109820.0,0.69170908]
[1751578159662,0.81049301,109830.0,109820.0,0.69170908]
[1751578160163,1.18049301,109830.0,109820.0,0.69170908]
[1751578160666,1.17049301,109830.0,109820.0,0.69170908]
[1751578160861,1.17056037,109830.0,109820.0,0.69170908]
[1751578161062,0.81056037,109830.0,109820.0,0.69170908]
[1751578161565,1.15056037,109830.0,109820.0,0.69170908]
[1751578161865,0.81056037,109830.0,109820.0,0.69170908]
[1751578162066,0.82541703,109830.0,109820.0,0.69170908]
[1751578162365,1.13886037,109830.0,109820.0,0.69170908]
[1751578163368,0.81541703,109830.0,109820.0,0.69170908]
[1751578163666,1.12886037,109830.0,109820.0,0.69170908]
[1751578164757,0.77886037,109830.0,109820.0,0.69170908]
[1751578165569,1.15886037,109830.0,109820.0,0.69170908]
[1751578165773,1.15887002,109830.0,109820.0,1.00516207]
[1751578165966,0.77887002,109830.0,109820.0,1.00516207]
[1751578166669,1.13887002,109830.0,109820.0,1.00516207]
[1751578167369,0.77887002,109830.0,109820.0,1.00516207]
[1751578168064,1.08887002,109830.0,109820.0,1.00516207]